[Event "1000 GM Labor Day Super Swiss 2024"]
[Site "San Jose"]
[Date "2024.09.02"]
[Round "6.8"]
[White "Garcia Guerrero, Isaac Antonio"]
[Black "Chen, Ryo"]
[Result "0-1"]
[Annotator "TA"]
[ECO "D04"]
[WhiteElo "2291"]
[BlackElo "2408"]
[PlyCount "134"]
[EventDate "2024.08.30"]
[EventType "swiss"]
[EventCountry "USA"]
[SourceTitle "playchess.com"]
[Source "ChessBase"]
[SourceQuality "1"]
[TimeControl "5400+30"]

{[%evp 14,134,-8,-13,0,-7,-19,-26,-16,-36,0,-3,0,0,0,0,0,0,8,14,26,8,7,2,8,-7,0,-11,-6,-3,-10,-87,-97,-104,-108,-100,-100,-103,-99,-101,-103,-95,-102,-141,-150,-193,-218,-237,-226,-239,-204,-206,-206,-206,-206,-206,-214,-231,-180,-180,-143,-162,-148,-139,-138,-218,-149,-156,-127,-131,-100,-98,-13,-13,-8,-8,-8,-8,-8,-185,-8,-8,-8,-8,-8,-8,-8,-8,-8,-8,-8,-10,-10,-16,-1299,-1270,-1168,-29966,-29968,-29967,-29969,-29969,-29970,-29970,-29971,-29971,-29972,-29972,-29973,-29973,-29973,-29974,-29975,-29975,-29976,-29977,-29976,-29976,-29977,-29979,-29974,-29980,-29981]} 1. Nf3 {[%emt 0:00:12]} Nf6 {[%emt 0:00:06]} 2. b3 {[%emt 0:00:08]} g6 {[%emt 0:00:04]} 3. Bb2 {[%emt 0:00:05]} Bg7 {[%emt 0:00:03]} 4. e3 {[%emt 0:00:38]} c5 {[%emt 0:00:49]} 5. Be2 {[%emt 0:01:47]} d5 {[%emt 0:01:11]} 6. O-O {[%emt 0:00:30]} O-O {[%emt 0:01:11]} 7. d4 {[%emt 0:04:15]} cxd4 {[%emt 0:00:37]} 8. Nxd4 {[%emt 0:01:26] Nowadays more popular than 8.exd4.} Re8 {[%emt 0:03:12] D04: Colle System.} 9. Nf3 {[%emt 0:17:29]} Nc6 {[%emt 0:06:28]} 10. c4 {[%emt 0:02:17]} e5 {[%emt 0:01:06][%cal Od5d4]} 11. Na3 {[%emt 0:03:57]} e4 {[%emt 0:02:25]} 12. Nd4 {[%emt 0:00:30]} Ne5 {[%emt 0:00:28]} 13. cxd5 $146 {[%emt 0:01:03]} ({Predecessor:} 13. c5 a6 14. h3 Qa5 15. Rc1 Bd7 16. Qe1 Qxe1 17. Rfxe1 Nd3 18. Bxd3 exd3 19. Nb1 {1-0 Calabrese,C-Petruzzelli,R (2038) ITA CIM28 email 2011 [135]}) 13... Nxd5 {[%emt 0:00:54]} 14. Nc4 {[%emt 0:01:59]} Qg5 {[%emt 0:01:26]} 15. Kh1 {[%emt 0:13:46]} Nxc4 {[%emt 0:17:53]} 16. bxc4 {[%emt 0:06:47]} Nc7 {[%emt 0:21:58]} 17. Rb1 {[%emt 0:03:42]} b6 {[%emt 0:04:30]} 18. f4 {[%emt 0:04:38]} Qh4 {[%emt 0:04:09]} 19. Nb5 {[%emt 0:09:33]} Nxb5 {[%emt 0:01:16]} 20. cxb5 {[%emt 0:01:08]} Be6 {[%emt 0:02:22]} 21. Bxg7 {[%emt 0:02:52]} Kxg7 {[%emt 0:00:02]} 22. Qc2 {[%emt 0:00:13]} (22. Rc1 $11 {remains equal.}) 22... Rac8 $17 {[%emt 0:04:13]} 23. Qxe4 {[%emt 0:07:54]} Bxa2 {[%emt 0:00:10]} 24. Qd4+ {[%emt 0:00:10]} Qf6 {[%emt 0:00:13][%cal Of6d4] White must now prevent ...Qxd4!} 25. Rb2 {[%emt 0:01:03]} (25. Qxf6+ Kxf6 26. Ra1 Bb3 $19) 25... Qxd4 {[%emt 0:00:31]} 26. exd4 {[%emt 0:00:02]} Bc4 {[%emt 0:00:17]} 27. Bxc4 {[%emt 0:01:42]} Rxc4 {[%emt 0:00:01]} 28. h3 {[%emt 0:00:39]} Rxd4 {[%emt 0:00:07]} 29. f5 {[%emt 0:00:10] [#]} g5 $1 {[%emt 0:02:44]} 30. Rc1 {[%emt 0:03:37]} Re5 {[%emt 0:01:39]} 31. f6+ {[%emt 0:04:31]} Kxf6 {[%emt 0:00:32]} 32. Rc7 {[%emt 0:00:46]} Re7 {[%emt 0:23:53]} 33. Rf2+ {[%emt 0:01:41]} Rf4 {[%emt 0:00:00]} 34. Rxf4+ {[%emt 0:00:05]} gxf4 {[%emt 0:00:00]} 35. Rc4 {[%emt 0:00:05]} Kf5 {[%emt 0:00:00]} 36. Kg1 {[%emt 0:00:14]} Re5 {[%emt 0:00:00]} 37. Rc7 {[%emt 0:00:21]} Kf6 {[%emt 0:00:00]} (37... Rxb5 38. Rxf7+ Ke4 39. Rxa7 $17) 38. Rxa7 {[%emt 0:00:36]} Rxb5 {[%emt 0:00:00]} 39. Ra4 {[%emt 0:00:26]} (39. Kf2 $17 {was worth a try.}) 39... Kg5 {[%emt 0:00:00]} 40. Ra7 {[%emt 0:00:37]} Kg6 {[%emt 0:00:00]} 41. Ra4 {[%emt 0:00:41]} f3 {[%emt 0:00:00]} 42. gxf3 {[%emt 0:00:28]} Rb2 {[%emt 0:00:00]} (42... h5 $17 {aiming for ...Rb2.} 43. Kf2 Kf6) 43. Rg4+ $11 {[%emt 0:00:41]} Kf5 {[%emt 0:00:00] Threatens to win with ...h5.} 44. Rh4 {[%emt 0:00:24]} f6 {[%emt 0:00:00] Hoping for ...b5.} 45. Rxh7 {[%emt 0:01:45]} Kf4 {[%emt 0:00:00]} 46. h4 $2 {[%emt 0:00:32]} (46. Rg7 $11) 46... b5 $2 {[%emt 0:00:00]} ({Stronger than} 46... Kxf3 47. Rh6 $11) ({Black should try} 46... Kg3 $1 $19 {[%cal Rb2b1]} 47. Kf1 Kxf3) 47. h5 $11 {[%emt 0:00:37]} b4 {[%emt 0:02:41]} 48. Rb7 {[%emt 0:04:13]} (48. Rg7 {is more complex.} b3 49. h6 Rc2 50. Rb7) 48... Kg5 {[%emt 0:00:25]} 49. Rb5+ {[%emt 0:00:16]} Kh6 {[%emt 0:00:23]} 50. Rb6 {[%emt 0:00:53]} Kxh5 {[%emt 0:01:18]} 51. Rxf6 {[%emt 0:00:19]} Kg5 {[%emt 0:00:25]} 52. Rf8 {[%emt 0:00:58]} b3 {[%emt 0:00:35] ( -> ...Rd2)} 53. Rb8 {[%emt 0:00:33]} Kf4 {[%emt 0:00:05]} 54. Kf1 {[%emt 0:00:37]} Kxf3 {[%emt 0:00:29][%cal Rb2b1]} 55. Ke1 {[%emt 0:00:50]} Ke3 {[%emt 0:00:03][%cal Rb2b1]} 56. Re8+ {[%emt 0:00:37]} Kd3 {[%emt 0:00:06]} 57. Rd8+ {[%emt 0:00:31]} Kc2 {[%emt 0:00:11]} 58. Rc8+ {[%emt 0:00:29]} Kb1 {[%emt 0:00:20]} 59. Rb8 {[%emt 0:00:23]} Kc1 {[%emt 0:00:08]} 60. Rb7 {[%emt 0:00:37]} Rb1 {[%emt 0:00:04]} 61. Ke2 {[%emt 0:00:31]} Kb2 {[%emt 0:00:08]} 62. Kd2 {[%emt 0:00:12]} Rh1 {[%emt 0:00:08]} 63. Rb8 {[%emt 0:01:19]} Rh7 {[%emt 0:00:07]} 64. Rd8 {[%emt 0:00:00]} Ka2 {[%emt 0:00:09]} 65. Ra8+ {[%emt 0:00:00] [#]} Kb1 $1 {[%emt 0:00:03]} 66. Rd8 {[%emt 0:00:00]} b2 {[%emt 0:00:04]} 67. Rd6 {[%emt 0:00:08]} Ra7 {[%emt 0:00:08]} 0-1

[Event "1000 GM Labor Day Super Swiss 2024"]
[Site "San Jose"]
[Date "2024.09.02"]
[Round "6.9"]
[White "Sivakumar, Shaashwath"]
[Black "Atwell, Rose"]
[Result "0-1"]
[Annotator "TA"]
[ECO "D12"]
[WhiteElo "2321"]
[BlackElo "2208"]
[PlyCount "88"]
[EventDate "2024.08.30"]
[EventType "swiss"]
[EventCountry "USA"]
[SourceTitle "playchess.com"]
[Source "ChessBase"]
[SourceQuality "1"]
[TimeControl "5400+30"]

{[%evp 13,88,29,29,14,30,18,33,18,20,24,30,0,0,0,39,-19,0,0,10,20,40,20,97,63,85,0,0,0,-5,-78,-76,-65,-48,-40,7,0,0,0,0,-2,83,20,164,131,214,220,210,206,563,211,203,125,129,136,160,0,0,-107,-100,-127,-117,-199,-186,-193,-187,-189,-109,-108,0,-522,-515,-999,-975,-6061,-6049,-29984,-29985]} 1. d4 {[%emt 0:00:02]} d5 {[%emt 0:00:04]} 2. c4 {[%emt 0:00:08]} c6 {[%emt 0:00:03]} 3. Nf3 {[%emt 0:00:03]} Nf6 {[%emt 0:00:05]} 4. e3 {[%emt 0:00:04]} Bf5 {[%emt 0:00:07]} 5. Nc3 {[%emt 0:00:05]} e6 {[%emt 0:00:04]} 6. Nh4 {[%emt 0:00:04]} Bg6 {[%emt 0:00:03]} 7. Nxg6 {[%emt 0:00:11]} hxg6 {[%emt 0:00:06]} 8. Bd2 {[%emt 0:00:02]} Nbd7 {[%emt 0:00:47]} 9. g3 {[%emt 0:00:15]} Be7 {[%emt 0:08:39]} 10. b3 {[%emt 0:00:19] White is slightly better.} Ne4 {[%emt 0:04:24]} 11. Nxe4 {[%emt 0:00:30]} dxe4 {[%emt 0:00:02]} 12. Bg2 {[%emt 0:04:46]} f5 {[%emt 0:02:24]} 13. Qc2 {[%emt 0:32:07]} Nf6 {[%emt 0:11:06]} 14. Bc3 {[%emt 0:01:31]} (14. f3 $14) 14... a5 {[%emt 0:08:21]} 15. f3 {[%emt 0:07:28]} exf3 {[%emt 0:02:37]} 16. Bxf3 {[%emt 0:01:01]} Qb6 {[%emt 0:07:18]} 17. O-O {[%emt 0:04:22]} e5 {[%emt 0:05:53]} 18. dxe5 {[%emt 0:09:11]} Qxe3+ {[%emt 0:00:23]} 19. Kh1 {[%emt 0:13:12]} (19. Kg2 $16 Qh6 20. h4 (20. exf6 $2 Qxh2#)) 19... Nh5 $11 {[%emt 0:07:07]} 20. Kg2 {[%emt 0:00:19]} Qh6 $1 {[%emt 0:02:33][%cal Oh5g3] White must now prevent ...Nxg3!} 21. Qf2 {[%emt 0:11:21] [#]} (21. Rh1 $11) 21... Nf4+ $1 $17 {[%emt 0:11:41]} 22. Kh1 {[%emt 0:00:59] [#]} Bc5 $1 {[%emt 0:01:49]} 23. Qc2 {[%emt 0:01:00] [#]} (23. Qb2 Ne6) 23... Nd3 {[%emt 0:03:03]} 24. Qg2 {[%emt 0:03:39]} O-O {[%emt 0:04:36]} 25. Qe2 {[%emt 0:01:04]} Rfd8 {[%emt 0:01:38]} 26. Bd2 {[%emt 0:04:47] Wards off Qe3} Qh3 {[%emt 0:02:33]} (26... g5 $11) 27. Bg5 {[%emt 0:00:41]} (27. Bd5+ $1 $16 cxd5 28. Qxd3) 27... Rd4 {[%emt 0:03:18] [#]} (27... Rd7 $1 $11 {and Black is okay.}) 28. Be3 $1 $36 {[%emt 0:00:16][%mdl 2048] White has strong initiative. A strong pair of Bishops.} Nxe5 {[%emt 0:02:27]} (28... Rd7 $16) 29. Bxd4 {[%emt 0:00:15]} Bxd4 {[%emt 0:00:05]} 30. Rad1 {[%emt 0:00:29]} c5 {[%emt 0:01:28]} (30... Nxf3 {is tougher.} 31. Rxf3 (31. Qxf3 Bf6 $16) 31... Bf6 32. Qe6+ Kh7) 31. Bxb7 $2 {[%emt 0:00:13]} (31. Bd5+ Kh8 32. Rxd4 (32. Bxb7 Rd8 $18) 32... cxd4 33. Bg2) 31... Re8 {[%emt 0:00:26]} 32. Bd5+ {[%emt 0:01:29]} Kh7 {[%emt 0:00:16]} 33. Bg2 {[%emt 0:00:13]} Qh6 {[%emt 0:00:54]} ({Don't blunder} 33... Qxh2+ $2 34. Kxh2 Ng4+ 35. Qxg4 fxg4 36. Rf4 $18) 34. h3 {[%emt 0:02:41]} (34. h4 $16) 34... Qg5 $11 {[%emt 0:01:22]} 35. Bd5 {[%emt 0:00:20]} (35. Qe1 $11 {remains equal.}) 35... Qxg3 $17 {[%emt 0:01:26]} 36. Qg2 {[%emt 0:00:03]} Qh4 {[%emt 0:01:07][%mdl 1024] aiming for ...Ng4. Black has strong compensation. Black is more active.} 37. Rde1 {[%emt 0:00:03] [#]} (37. Qh2 $17) 37... g5 $1 $19 {[%emt 0:01:18]} 38. Re2 {[%emt 0:00:30]} g6 {[%emt 0:01:50] Threatens to win with ...g4.} 39. Qh2 {[%emt 0:00:23]} f4 {[%emt 0:03:17]} (39... Kg7 $19 {[%cal Oe5g4] Strongly threatening ...Ng4!} 40. Bg2 f4) 40. Qg2 $17 {[%emt 0:00:39] Inhibits Ng4.} Be3 {[%emt 0:00:39]} (40... Kg7 $17 {...Kf6 would now be deadly.} 41. Re4 Qh5 (41... Rh8 42. Be6 $19)) 41. Rd1 $2 {[%emt 0:01:51][%mdl 8192]} (41. Be6 $11 {and White stays safe.} Bd4 (41... Rxe6 42. Qb7+ Kg8 43. Qc8+ Kf7 44. Rxe3 $11) 42. Bg4) 41... g4 $19 {[%emt 0:00:44][%cal Of4f3] ...f3! is the strong threat.} 42. Qh2 {[%emt 0:01:09] White is weak on the dark squares} (42. Qf1 $142) 42... gxh3 {[%emt 0:01:03]} 43. Rg1 {[%emt 0:00:38] Wards off Ng4} Ng4 {[%emt 0:01:04]} 44. Rxe3 {[%emt 0:00:25]} Rxe3 {[%emt 0:00:19] Weighted Error Value: White=0.87/Black=0.37.  Loses game:     	White=1     	---        Mistake:       	White=9     	Black=8      Inaccurate:     	White=4     	Black=1      OK:         	White=8     	Black=9      Best:        	White=4     	Black=6      Strong:       	White=1     	Black=2      Brilliant:      	---       	Black=1} 0-1

[Event "1000 GM Labor Day Super Swiss 2024"]
[Site "San Jose"]
[Date "2024.09.02"]
[Round "6.10"]
[White "Deng, Henry"]
[Black "Wu, Derek"]
[Result "1/2-1/2"]
[Annotator "TA"]
[ECO "C07"]
[WhiteElo "2338"]
[BlackElo "2278"]
[PlyCount "98"]
[EventDate "2024.08.30"]
[EventType "swiss"]
[EventCountry "USA"]
[SourceTitle "playchess.com"]
[Source "ChessBase"]
[SourceQuality "1"]
[TimeControl "5400+30"]

{[%evp 9,98,25,16,-24,-15,-6,24,15,18,21,14,20,31,6,35,10,1,5,32,24,56,16,28,24,48,35,35,20,41,39,33,39,39,46,57,31,35,45,39,27,36,37,68,51,67,62,58,61,77,67,82,75,85,69,62,68,67,52,118,51,65,20,26,20,49,25,16,0,0,0,0,0,0,0,0,0,0,-3,-2,-4,-1,-9,0,0,-3,-3,0,0,0,0,0]} 1. e4 {[%emt 0:00:16]} e6 {[%emt 0:01:24]} 2. d4 {[%emt 0:00:45]} d5 {[%emt 0:00:06]} 3. Nd2 {[%emt 0:03:07]} c5 {[%emt 0:00:08][%cal Bc7c5,Bc5d4,Bd4d3][%mdl 32]} 4. exd5 {[%emt 0:03:15]} Qxd5 {[%emt 0:00:11]} 5. Ngf3 {[%emt 0:00:10]} cxd4 {[%emt 0:00:20]} 6. g3 {[%emt 0:00:58]} Nc6 {[%emt 0:02:47]} 7. Bg2 {[%emt 0:00:09]} Nf6 {[%emt 0:05:05]} 8. O-O {[%emt 0:02:29][%mdl 1024] White has compensation. White has an edge.} Qd8 {[%emt 0:04:16]} 9. Nb3 {[%emt 0:04:29] Prevents Bc5.} d3 {[%emt 0:05:44]} 10. c3 {[%emt 0:09:04]} Be7 {[%emt 0:05:34]} 11. Re1 {[%emt 0:14:50]} O-O {[%emt 0:08:42]} 12. Nfd4 {[%emt 0:07:01][%cal Bf3d4,Bd4c2,Bc2e3][%mdl 32]} Bd7 {[%emt 0:04:36]} 13. Qxd3 {[%emt 0:03:01]} Nd5 {[%emt 0:05:12]} 14. Bd2 {[%emt 0:04:57]} Bf6 {[%emt 0:07:53]} 15. Nc2 {[%emt 0:11:10]} Ne5 {[%emt 0:06:51]} 16. Qe2 {[%emt 0:03:12]} Rc8 {[%emt 0:01:34]} 17. Ne3 {[%emt 0:03:22] Wards off Nc4} a6 {[%emt 0:08:13]} 18. Nd4 {[%emt 0:03:37] Inhibits Bb5.} Nc6 {[%emt 0:07:21]} 19. Nxd5 {[%emt 0:04:48]} exd5 {[%emt 0:01:01]} 20. Nxc6 ({Much weaker is} 20. Bxd5 Bxd4 21. cxd4 Nxd4 $11) 20... Bxc6 {[%emt 0:00:10]} 21. Be3 {[%emt 0:04:15]} Qa5 {[%emt 0:02:30]} 22. Qg4 {[%emt 0:01:56]} Rfe8 {[%emt 0:02:04]} 23. Red1 {[%emt 0:01:23][%cal Be1d1,Bd1d2,Bd2e2,Be2e5][%mdl 32]} Re6 {[%emt 0:04:02]} 24. a3 {[%emt 0:02:52]} Rd8 {[%emt 0:02:40]} 25. Rd2 {[%emt 0:02:18]} Red6 {[%emt 0:01:19][%cal Od5d4]} 26. Bd4 {[%emt 0:01:50]} Bxd4 {[%emt 0:01:10]} 27. Qxd4 {[%emt 0:00:38]} h6 {[%emt 0:02:03]} 28. Re1 {[%emt 0:00:52]} Qc7 {[%emt 0:03:07]} 29. Rde2 {[%emt 0:00:57]} Qc8 {[%emt 0:01:26]} 30. Re5 {[%emt 0:01:20]} Qd7 {[%emt 0:00:57]} 31. Bf1 {[%emt 0:01:45]} Bb5 {[%emt 0:01:24]} 32. Re7 {[%emt 0:00:10]} Qc6 {[%emt 0:00:09]} 33. Bg2 {[%emt 0:01:14]} Qc8 {[%emt 0:01:25]} ({Better is} 33... b6 $14) 34. Rd1 {[%emt 0:01:16]} (34. R1e5 $16) 34... Bc4 {[%emt 0:00:31]} 35. Qe3 {[%emt 0:00:38] White has more active pieces.} R6d7 {[%emt 0:01:18]} 36. Re5 {[%emt 0:00:45]} Rd6 {[%emt 0:00:10]} 37. Rd4 {[%emt 0:00:18]} Re6 {[%emt 0:01:25]} 38. Rd1 {[%emt 0:01:17] The position is equal.} (38. Bxd5 $2 {too greedy.} Bxd5 39. Rxe6 Bxe6 $19) 38... Rxe5 {[%emt 0:00:10]} 39. Qxe5 {[%emt 0:00:02][%cal Rg2d5]} Re8 {[%emt 0:00:20]} 40. Qd4 {[%emt 0:00:15]} Re2 {[%emt 0:01:05]} 41. Bxd5 {[%emt 0:02:35]} Bxd5 {[%emt 0:00:32]} 42. Qxd5 {[%emt 0:00:03]} Rxb2 {[%emt 0:00:07]} 43. Qd8+ {[%emt 0:00:36]} Qxd8 {[%emt 0:00:25]} 44. Rxd8+ $11 {[%emt 0:00:03][%mdl 4096] Endgame. KR-KR} Kh7 {[%emt 0:05:03]} 45. Rb8 {[%emt 0:00:07]} Kg6 {[%emt 0:00:00]} 46. c4 {[%emt 0:03:25]} f6 {[%emt 0:00:00]} 47. Kg2 {[%emt 0:00:00]} Kf5 {[%emt 0:01:30]} 48. c5 {[%emt 0:00:00] Hoping for c6.} Rb5 {[%emt 0:00:00]} 49. a4 {[%emt 0:00:00]} Rxc5 {[%emt 0:00:00] Weighted Error Value: White=0.11 (very precise) /Black=0.10 (very precise) .  Mistake:       	White=1     	Black=1      Inaccurate:     	White=3     	Black=5      OK:         	White=19    	Black=13     Best:        	White=1     	Black=3} 1/2-1/2

[Event "1000 GM Labor Day Super Swiss 2024"]
[Site "San Jose"]
[Date "2024.09.02"]
[Round "6.11"]
[White "Yoo, Christopher Woojin"]
[Black "Chinni, Rishabh"]
[Result "1/2-1/2"]
[Annotator "RC"]
[ECO "D38"]
[WhiteElo "2616"]
[BlackElo "2220"]
[PlyCount "92"]
[EventDate "2024.08.30"]
[EventType "swiss"]
[EventCountry "USA"]
[SourceTitle "playchess.com"]
[Source "ChessBase"]
[SourceQuality "1"]
[TimeControl "5400+30"]

1. Nf3 {[%emt 0:00:03]} Nf6 {[%emt 0:00:05]} 2. c4 {[%emt 0:00:03]} e6 {[%emt 0:00:07]} 3. Nc3 {[%emt 0:00:02]} d5 {[%emt 0:00:44]} 4. d4 {[%emt 0:00:04]} Bb4 {[%emt 0:00:35]} 5. Qa4+ {[%emt 0:00:07]} Nc6 {[%emt 0:00:09]} 6. e3 {[%emt 0:00:05]} Ne4 {[%emt 0:01:36]} 7. Qc2 {[%emt 0:00:23]} O-O {[%emt 0:02:01]} 8. Bd3 {[%emt 0:01:29]} f5 {[%emt 0:03:12]} 9. O-O {[%emt 0:00:21]} Na5 {[%emt 0:05:41]} 10. cxd5 {[%emt 0:02:58]} exd5 {[%emt 0:00:26]} 11. Ne2 {[%emt 0:00:43]} Bd6 {[%emt 0:03:06]} 12. a3 {[%emt 0:03:24]} Be6 {[%emt 0:01:25]} 13. Ne5 {[%emt 0:00:10]} c5 {[%emt 0:06:45]} 14. Nf4 {[%emt 0:01:40]} Qf6 {[%emt 0:03:41]} 15. f3 {[%emt 0:04:46]} c4 {[%emt 0:10:27]} 16. Qa4 {[%emt 0:01:46]} Nc5 {[%emt 0:08:29]} 17. Qxa5 {[%emt 0:02:30]} cxd3 {[%emt 0:12:30]} 18. dxc5 {[%emt 0:14:16]} Bxe5 {[%emt 0:00:16]} 19. Nxd3 {[%emt 0:00:06]} f4 {[%emt 0:02:17]} 20. Qb4 {[%emt 0:03:16]} a5 {[%emt 0:07:12]} 21. Qb6 {[%emt 0:07:04]} fxe3 {[%emt 0:08:12]} 22. Bxe3 {[%emt 0:00:19]} Bf5 {[%emt 0:01:01]} 23. Qxb7 {[%emt 0:03:00]} Rad8 {[%emt 0:06:08]} 24. Rad1 {[%emt 0:01:30]} Bxd3 {[%emt 0:02:04]} 25. Rxd3 {[%emt 0:00:05]} Qh4 {[%emt 0:00:12]} 26. f4 {[%emt 0:01:39]} Bxf4 {[%emt 0:00:32]} 27. Bxf4 {[%emt 0:04:10]} Rxf4 {[%emt 0:00:12]} 28. Rxf4 {[%emt 0:07:57]} Qxf4 {[%emt 0:00:12]} 29. Qe7 {[%emt 0:00:12]} Qc1+ {[%emt 0:03:50]} 30. Kf2 {[%emt 0:00:04]} Qxb2+ {[%emt 0:01:48]} 31. Kg3 {[%emt 0:00:52]} Qb8+ {[%emt 0:01:01]} 32. Kh3 {[%emt 0:00:04]} Qc8+ {[%emt 0:00:45]} 33. g4 {[%emt 0:00:05]} Re8 {[%emt 0:00:20]} 34. Qd6 {[%emt 0:00:07]} Rd8 {[%emt 0:00:35]} 35. Qb6 {[%emt 0:00:06]} h5 {[%emt 0:00:36]} 36. Rd4 {[%emt 0:01:26]} hxg4+ {[%emt 0:00:54]} 37. Rxg4 {[%emt 0:02:15]} Rf8 {[%emt 0:02:54]} 38. Qd6 {[%emt 0:02:47]} Qf5 {[%emt 0:00:50]} 39. Qg6 {[%emt 0:04:02]} Qf1+ {[%emt 0:01:28]} 40. Kh4 {[%emt 0:00:37]} Qf2+ {[%emt 0:00:06]} 41. Kh3 {[%emt 0:00:10]} Qf1+ {[%emt 0:00:05]} 42. Rg2 {[%emt 0:00:58]} Rf3+ {[%emt 0:00:29]} 43. Kh4 {[%emt 0:00:07]} Rf4+ {[%emt 0:00:36]} 44. Rg4 {[%emt 0:00:04]} Qf2+ {[%emt 0:00:17]} 45. Kh3 {[%emt 0:00:18]} Qf1+ {[%emt 0:00:18]} 46. Kh4 {[%emt 0:03:13]} Qf2+ {[%emt 0:00:07]} 1/2-1/2

[Event "1000 GM Labor Day Super Swiss 2024"]
[Site "San Jose"]
[Date "2024.09.02"]
[Round "6.12"]
[White "Guo, Andrew"]
[Black "Sivakumar, Shaaketh"]
[Result "1/2-1/2"]
[Annotator "TA"]
[ECO "E08"]
[WhiteElo "2207"]
[BlackElo "2307"]
[PlyCount "63"]
[EventDate "2024.08.30"]
[EventType "swiss"]
[EventCountry "USA"]
[SourceTitle "playchess.com"]
[Source "ChessBase"]
[SourceQuality "1"]
[TimeControl "5400+30"]

{[%evp 17,63,21,18,16,17,23,37,42,69,46,59,36,27,30,45,29,59,36,65,58,69,66,61,56,78,55,67,39,66,59,62,51,52,52,88,81,88,81,83,89,87,86,89,36,91,42,44,44]} 1. d4 {[%emt 0:00:09]} e6 {[%emt 0:00:07]} 2. c4 {[%emt 0:00:32]} Nf6 {[%emt 0:00:11]} 3. g3 {[%emt 0:00:14]} d5 {[%emt 0:00:02]} 4. Bg2 {[%emt 0:00:06]} Bb4+ {[%emt 0:00:13]} 5. Bd2 {[%emt 0:00:04]} Be7 {[%emt 0:00:07]} 6. Nf3 {[%emt 0:00:04][%cal Bg1f3,Bf3e5,Be5d3,Bd3b4][%mdl 32]} O-O {[%emt 0:00:10]} 7. O-O {[%emt 0:00:05]} c6 {[%emt 0:00:09]} 8. Qc2 {[%emt 0:00:34]} Nbd7 {[%emt 0:00:02]} 9. Bf4 {[%emt 0:01:03]} a5 {[%emt 0:00:07]} 10. Rd1 {[%emt 0:01:10]} a4 {[%emt 0:00:10]} 11. Ne5 {[%emt 0:00:08]} Nh5 {[%emt 0:00:43]} 12. Bd2 {[%emt 0:04:57]} f5 {[%emt 0:01:35]} 13. Nd3 {[%emt 0:03:28] White is more active.} Nhf6 {[%emt 0:01:52]} 14. Bb4 {[%emt 0:05:52]} Bxb4 {[%emt 0:03:56]} 15. Nxb4 {[%emt 0:00:08]} Ne4 {[%emt 0:00:39]} 16. e3 {[%emt 0:05:59]} g5 {[%emt 0:02:28][%cal Bg7g5,Bg5g4][%mdl 32]} 17. Nd2 {[%emt 0:04:44]} g4 {[%emt 0:01:44]} 18. Nd3 {[%emt 0:01:24]} Qe7 {[%emt 0:02:31]} 19. Nf4 {[%emt 0:04:02]} Ndf6 {[%emt 0:00:34]} 20. Nxe4 {[%emt 0:13:54]} fxe4 {[%emt 0:00:23]} 21. Qc3 {[%emt 0:00:40]} Bd7 {[%emt 0:01:20]} 22. h4 {[%emt 0:06:28]} b5 {[%emt 0:01:19]} 23. cxb5 {[%emt 0:04:23]} cxb5 {[%emt 0:00:01]} 24. Rac1 {[%emt 0:05:32]} Rfc8 {[%emt 0:01:17]} 25. Qd2 {[%emt 0:01:47]} Kf7 {[%emt 0:00:54]} 26. Rxc8 {[%emt 0:06:12]} Rxc8 {[%emt 0:00:01]} 27. Rc1 {[%emt 0:00:07]} Rxc1+ {[%emt 0:02:01]} 28. Qxc1 {[%emt 0:00:04]} Qd6 {[%emt 0:00:16] [#]} 29. a3 $1 {[%emt 0:00:45]} b4 {[%emt 0:00:36][%cal Bb5b4,Bb4b3][%mdl 32] [#]} 30. Bf1 {[%emt 0:02:13]} (30. axb4 $1 $16 {Qc5 is the strong threat.} Qxb4 31. Bf1) 30... Qb6 {[%emt 0:00:14]} (30... b3 $1 $14) 31. Qd2 {[%emt 0:03:06]} (31. axb4 $16 {Black must now prevent Qc3.} Qxb4 32. Be2) 31... b3 $1 $14 {[%emt 0:01:38]} 32. Qc3 {[%emt 0:01:40] Prevents Qc7.   Weighted Error Value: White=0.11 (very precise) /Black=0.11 (very precise) .  Mistake:       	White=2     	Black=1      Inaccurate:     	White=1     	Black=5      OK:         	White=7     	Black=6      Strong:       	White=1     	Black=1} 1/2-1/2